bitfinex-derivatives/quotes_BTCF0:USTF0_20241217
["timestamp","ask_amount","ask_price","bid_price","bid_amount"]
[1734454156824,0.44690409,106870.0,106860.0,0.046787]
[1734454157311,0.0847,106870.0,106860.0,0.57099192]
[1734454157620,0.01861126,106880.0,106870.0,0.046783]
[1734454157907,0.06539026,106880.0,106870.0,0.57180952]
[1734454158311,0.01861126,106880.0,106870.0,0.57180952]
[1734454159807,0.01861126,106880.0,106870.0,0.13076388]
[1734454161113,0.42619026,106880.0,106870.0,0.13076388]
[1734454161303,0.06539026,106880.0,106870.0,0.13076388]
[1734454163206,0.42619026,106880.0,106870.0,0.046783]
[1734454163814,0.42619026,106880.0,106870.0,0.13076388]
[1734454164012,0.06539026,106880.0,106870.0,0.14130454]
[1734454165107,0.06539026,106880.0,106870.0,0.05732366]
[1734454166204,0.06539026,106880.0,106870.0,0.14130454]
[1734454166809,0.42619026,106880.0,106870.0,0.14130454]
[1734454167517,0.42619026,106880.0,106870.0,0.05732366]
[1734454171118,0.51017114,106880.0,106870.0,0.01054066]
[1734454171318,0.046787,106860.0,106850.0,0.04679]
[1734454171524,0.407587,106860.0,106850.0,0.05711587]
[1734454171721,0.571787,106860.0,106850.0,0.05711587]
[1734454171915,0.0816,106860.0,106850.0,0.14109675]
[1734454172115,0.59009126,106880.0,106860.0,0.046787]
[1734454172418,0.59009126,106880.0,106870.0,0.046783]
[1734454172615,0.046785,106870.0,106860.0,0.046785]
[1734454172821,0.59009126,106880.0,106870.0,0.046783]
[1734454173816,0.54331126,106880.0,106870.0,0.046783]
[1734454174015,0.54331126,106880.0,106870.0,0.13076388]
[1734454174220,0.0816,106880.0,106870.0,0.13076388]
[1734454174610,0.0816,106880.0,106870.0,0.49156388]
[1734454174810,9.463e-05,106890.0,106880.0,0.046779]
[1734454175011,9.463e-05,106890.0,106880.0,0.13075988]
[1734454175426,0.04686863,106890.0,106880.0,0.13075988]
[1734454175825,0.40766863,106890.0,106880.0,0.13075988]
[1734454176021,0.04686863,106890.0,106880.0,0.13075988]
[1734454176416,9.463e-05,106890.0,106880.0,0.13075988]
[1734454176621,9.463e-05,106890.0,106880.0,0.13085024]
[1734454176820,0.04686863,106890.0,106880.0,0.13085024]
[1734454177316,0.40766863,106890.0,106880.0,0.13085024]
[1734454177718,0.40766863,106890.0,106880.0,9.036e-05]
[1734454178126,0.49164951,106890.0,106880.0,9.036e-05]
[1734454178328,0.40766863,106890.0,106880.0,9.036e-05]
[1734454178518,0.49164951,106890.0,106880.0,9.036e-05]
[1734454178825,1.90766863,106890.0,106880.0,9.036e-05]
[1734454179028,1.90766863,106890.0,106880.0,0.04686936]
[1734454179328,1.90766863,106890.0,106880.0,9.036e-05]
[1734454180025,0.40766863,106890.0,106880.0,9.036e-05]
[1734454180217,0.49164951,106890.0,106880.0,9.036e-05]
[1734454181827,0.40766863,106890.0,106880.0,0.04686936]
[1734454183228,0.40766863,106890.0,106880.0,9.036e-05]
[1734454185718,1.90766863,106890.0,106880.0,9.036e-05]
[1734454188028,0.40766863,106890.0,106880.0,9.036e-05]
[1734454188628,1.90766863,106890.0,106880.0,9.036e-05]
[1734454188828,1.99164951,106890.0,106880.0,9.036e-05]
[1734454189026,1.90766863,106890.0,106880.0,9.036e-05]
[1734454190622,1.99164951,106890.0,106880.0,9.036e-05]
[1734454190921,0.046787,106860.0,106850.0,0.046791]
[1734454191121,0.407587,106860.0,106850.0,0.44208248]
[1734454191326,0.65786788,106860.0,106850.0,0.44208248]
[1734454191531,0.046792,106850.0,106840.0,0.44348614]
[1734454191827,0.407592,106850.0,106840.0,0.00152512]
[1734454192229,0.57477288,106850.0,106840.0,0.00152512]
[1734454192526,0.490792,106850.0,106840.0,0.00152512]
[1734454193343,0.490792,106850.0,106840.0,0.04832112]
[1734454193836,0.3608,106850.0,106840.0,0.132302]
[1734454194021,0.57508901,106860.0,106850.0,0.046792]
[1734454194218,0.573889,106860.0,106850.0,0.046792]
[1734454195530,0.5271,106860.0,106850.0,0.13077288]
[1734454195732,0.573887,106860.0,106850.0,0.13077288]
[1734454196124,0.573887,106860.0,106850.0,0.046792]
[1734454196720,0.213087,106860.0,106850.0,0.046792]
[1734454197124,0.573887,106860.0,106850.0,0.046792]
[1734454197718,0.213087,106860.0,106850.0,0.046792]
[1734454198129,0.0801,106860.0,106850.0,0.13077288]
[1734454198328,0.3608,106870.0,106850.0,0.49157288]
[1734454198630,0.3608,106870.0,106860.0,0.13076788]
[1734454198837,0.407583,106870.0,106860.0,0.129787]
[1734454199026,0.046783,106870.0,106860.0,0.129787]
[1734454199426,0.57148,106880.0,106870.0,0.046783]
[1734454199732,0.57148,106880.0,106870.0,0.13076388]
[1734454200133,0.21068,106880.0,106870.0,0.13076388]
[1734454200326,0.0792,106880.0,106870.0,0.49156388]
[1734454200522,0.046783,106870.0,106860.0,0.083]
[1734454200727,0.407583,106870.0,106860.0,0.083]
[1734454200934,0.046783,106870.0,106860.0,0.129787]
[1734454201138,0.407583,106870.0,106860.0,0.21376788]
[1734454201636,0.407583,106870.0,106860.0,0.083]
[1734454201829,0.046787,106860.0,106850.0,0.44265572]
[1734454202132,0.407587,106860.0,106840.0,0.65037584]
[1734454202330,0.407592,106850.0,106840.0,0.20772012]
[1734454202526,0.489692,106850.0,106840.0,0.12842012]
[1734454202735,0.489692,106850.0,106840.0,0.212401]
[1734454203029,0.4429,106850.0,106840.0,0.212401]
[1734454203236,0.4429,106850.0,106840.0,0.22272744]
[1734454203427,0.489692,106850.0,106840.0,0.22272744]
[1734454203934,0.4429,106850.0,106840.0,0.22272744]
[1734454204125,0.0821,106850.0,106840.0,0.22272744]
[1734454204638,0.4429,106850.0,106840.0,0.22272744]
[1734454204829,0.4429,106850.0,106840.0,0.66538316]
[1734454205022,0.489692,106850.0,106840.0,0.66538316]
[1734454205633,0.489692,106850.0,106840.0,0.50130228]
[1734454205834,0.489692,106850.0,106840.0,0.05864656]
[1734454206137,0.489692,106850.0,106840.0,0.45450728]
[1734454206342,0.65717288,106850.0,106840.0,0.01185156]
[1734454206636,0.65717288,106850.0,106840.0,0.00012146]
[1734454206830,0.65717288,106850.0,106840.0,0.38740204]
[1734454208438,0.573192,106850.0,106840.0,0.38740204]
[1734454208635,0.573192,106850.0,106840.0,0.00012146]
[1734454209735,0.573192,106850.0,106840.0,0.04691746]
[1734454209935,0.489692,106850.0,106840.0,0.43419804]
[1734454210139,0.489692,106850.0,106840.0,0.04691746]
[1734454211040,0.489692,106850.0,106840.0,0.00012146]
[1734454211240,0.57367288,106850.0,106840.0,0.00012146]
[1734454211742,0.489692,106850.0,106840.0,0.00012146]
[1734454211940,0.489692,106850.0,106840.0,0.04691746]
[1734454212439,0.4429,106850.0,106840.0,0.13089834]
[1734454212643,0.0821,106850.0,106840.0,0.13089834]
[1734454212936,0.37919045,106860.0,106850.0,0.046792]
[1734454213137,0.42597745,106860.0,106850.0,0.046792]
[1734454213328,0.42597745,106860.0,106840.0,0.12601646]
[1734454213329,0.046792,106850.0,106840.0,0.12601646]
[1734454213534,0.407592,106850.0,106840.0,0.12601646]
[1734454214139,0.35498362,106850.0,106840.0,0.04691646]
[1734454214441,0.35498362,106850.0,106840.0,0.13089734]
[1734454216350,0.40177562,106850.0,106840.0,0.04691646]
[1734454217336,0.37919045,106860.0,106840.0,0.04691646]
[1734454217536,0.42597845,106860.0,106850.0,0.046792]
[1734454217932,0.046792,106850.0,106840.0,0.04691546]
[1734454218133,0.407592,106850.0,106840.0,0.04691546]
[1734454218640,0.3608,106850.0,106840.0,0.04691546]
[1734454219344,0.407592,106850.0,106840.0,0.04691546]
[1734454219733,0.046792,106850.0,106840.0,0.04691546]
[1734454220337,0.407592,106850.0,106840.0,0.04691546]
[1734454220540,0.49157288,106850.0,106840.0,0.00012146]
[1734454220832,0.49157288,106850.0,106830.0,0.05688506]
[1734454220833,0.046796,106840.0,106830.0,0.05688506]
[1734454221036,0.489896,106840.0,106830.0,0.05688506]
[1734454221938,0.489896,106840.0,106830.0,0.05696617]
[1734454224144,0.567096,106840.0,106830.0,0.05696617]
[1734454225229,0.5203,106840.0,106830.0,0.05696617]
[1734454226341,0.1595,106840.0,106830.0,0.05696617]
[1734454226738,0.1595,106840.0,106830.0,0.52858009]
[1734454226942,0.1595,106840.0,106830.0,0.6375432]
[1734454227245,0.5203,106840.0,106830.0,0.6921899]
[1734454227640,0.5203,106840.0,106830.0,1.19062252]
[1734454227944,0.1595,106840.0,106830.0,0.6921899]
[1734454228547,0.1595,106840.0,106830.0,0.60820902]
[1734454228845,0.0772,106840.0,106830.0,0.6921899]
[1734454229338,0.0772,106840.0,106830.0,0.63954505]
[1734454229644,0.3608,106850.0,106840.0,0.046796]
[1734454229941,0.046792,106850.0,106840.0,0.65004612]
[1734454230149,0.046792,106850.0,106840.0,1.14853548]
[1734454230349,0.046792,106850.0,106840.0,0.70557088]
[1734454230639,0.407592,106850.0,106840.0,1.06457291]
[1734454231345,0.407592,106850.0,106840.0,0.56597491]
[1734454231548,0.407592,106850.0,106840.0,1.5077075]
[1734454231842,0.407592,106850.0,106840.0,0.56612659]
[1734454232238,0.49157288,106850.0,106840.0,0.44313459]
[1734454232437,0.407592,106850.0,106840.0,0.44313459]
[1734454233034,0.407592,106850.0,106840.0,0.48993059]
[1734454233543,0.3608,106850.0,106840.0,0.57391147]
[1734454233936,0.3608,106850.0,106840.0,1.07250947]
[1734454234138,0.3608,106850.0,106840.0,0.62937488]
[1734454234935,0.0813,106860.0,106850.0,0.046792]
[1734454235135,0.40898504,106880.0,106870.0,0.046783]
[1734454235136,0.48388504,106880.0,106870.0,0.046783]
[1734454235343,0.50303303,106880.0,106870.0,0.046783]
[1734454235650,0.58665151,106880.0,106870.0,0.046783]
[1734454236237,0.50303303,106880.0,106870.0,0.046783]
[1734454238345,0.57873303,106880.0,106870.0,0.046783]
[1734454239041,0.57873303,106880.0,106860.0,0.08398088]
[1734454239247,0.407585,106870.0,106850.0,0.00985691]
[1734454239438,0.046787,106860.0,106850.0,0.04679]
[1734454239746,1.546787,106860.0,106850.0,0.13077088]
[1734454241548,0.046787,106860.0,106850.0,0.13077088]
[1734454241744,0.407585,106870.0,106860.0,0.046787]
[1734454241950,1.907585,106870.0,106860.0,0.046787]
[1734454242744,0.046787,106860.0,106850.0,0.046789]
[1734454242956,0.407587,106860.0,106850.0,0.046789]
[1734454243160,0.046792,106850.0,106840.0,0.05692206]
[1734454243456,0.558892,106850.0,106840.0,0.14090294]
[1734454244149,0.5121,106850.0,106840.0,0.14090294]
[1734454244952,0.1513,106850.0,106840.0,0.14090294]
[1734454246743,0.0752,106850.0,106840.0,0.50170294]
[1734454246952,0.3608,106860.0,106850.0,0.046792]
[1734454247144,0.3608,106860.0,106850.0,0.13077288]
[1734454249957,0.407587,106860.0,106850.0,0.49005736]
[1734454250257,0.768387,106860.0,106850.0,0.44326536]
[1734454250646,0.768387,106860.0,106840.0,0.50018842]
[1734454250951,0.407592,106850.0,106840.0,0.5841693]
[1734454251156,0.046792,106850.0,106840.0,0.5841693]
[1734454252760,0.40759,106860.0,106850.0,0.046792]
[1734454253951,0.40759,106860.0,106840.0,0.44326536]
[1734454254151,0.40759,106860.0,106850.0,0.046792]
[1734454254556,0.40759,106860.0,106850.0,0.49005736]
[1734454254753,0.40759,106860.0,106850.0,0.046792]
[1734454254953,0.40759,106860.0,106850.0,0.49005736]
[1734454255462,0.42645374,106860.0,106850.0,0.046792]
[1734454257058,0.42645074,106860.0,106850.0,0.046792]
[1734454258452,0.49405074,106860.0,106850.0,0.046792]
[1734454260159,0.37966374,106860.0,106850.0,0.13077288]
[1734454260861,0.1615,106870.0,106850.0,0.49157288]
[1734454261051,0.1615,106870.0,106860.0,0.49156788]
[1734454261248,0.3608,106880.0,106870.0,0.046783]
[1734454261460,0.3608,106880.0,106870.0,0.13076388]
[1734454262854,0.20191052,106890.0,106870.0,0.19596388]
[1734454263068,0.20191052,106890.0,106880.0,0.13075988]
[1734454263069,0.15513452,106890.0,106880.0,0.13075988]
[1734454263363,0.15513452,106890.0,106880.0,0.046779]
[1734454263758,0.56270852,106890.0,106880.0,0.046779]
[1734454265664,0.56270852,106890.0,106870.0,0.046782]
[1734454265665,0.046779,106880.0,106870.0,0.046782]
[1734454265862,0.046783,106870.0,106860.0,0.55895136]
[1734454266067,0.407583,106870.0,106860.0,0.55895136]
[1734454266265,0.3608,106880.0,106860.0,0.55895136]
[1734454266452,1.907581,106880.0,106870.0,0.046783]
[1734454266657,1.907581,106880.0,106870.0,0.13076388]
[1734454267260,0.407581,106880.0,106870.0,0.13076388]
[1734454268064,0.3608,106880.0,106870.0,0.13076388]
[1734454268766,0.407579,106880.0,106870.0,0.13076388]
[1734454269160,0.046783,106870.0,106860.0,0.99837116]
[1734454269467,0.111483,106870.0,106860.0,0.99837116]
[1734454269768,0.111483,106870.0,106860.0,0.0565078]
[1734454270165,0.111483,106870.0,106860.0,0.14048868]
[1734454270870,0.472283,106870.0,106860.0,0.14048868]
[1734454271573,0.111483,106870.0,106860.0,0.14048868]
[1734454273471,0.472283,106870.0,106860.0,0.0565078]
[1734454273971,0.111483,106870.0,106860.0,0.0565078]
[1734454274468,0.472283,106870.0,106860.0,0.0565078]
[1734454274663,0.472283,106870.0,106850.0,0.13076888]
[1734454274664,0.046787,106860.0,106850.0,0.046789]
[1734454274869,0.478787,106860.0,106850.0,0.046789]
[1734454276479,0.046792,106850.0,106840.0,0.00140368]
[1734454276771,0.49157288,106850.0,106840.0,0.00140368]
[1734454277080,1.99157288,106850.0,106840.0,0.00140368]
[1734454278764,1.99157288,106850.0,106830.0,0.00982543]
[1734454278765,0.046796,106840.0,106830.0,0.00982543]
[1734454278971,0.56027688,106840.0,106830.0,0.00982543]
[1734454280077,0.56027688,106840.0,106830.0,0.05662543]
[1734454280269,0.476296,106840.0,106830.0,0.05662543]
[1734454280476,0.476296,106840.0,106830.0,0.00982543]
[1734454281481,0.476296,106840.0,106830.0,8.111e-05]
[1734454281482,0.56027688,106840.0,106830.0,8.111e-05]
[1734454281781,0.36196,106850.0,106840.0,0.046796]
[1734454282072,0.61989,106860.0,106850.0,0.046792]
[1734454282279,0.5731,106860.0,106850.0,0.13077288]
[1734454282475,0.142,106860.0,106850.0,0.49157288]
[1734454282666,0.142,106860.0,106850.0,0.13077288]
[1734454282667,0.0712,106860.0,106850.0,0.13077288]
[1734454283378,0.478787,106860.0,106850.0,0.57316946]
[1734454283679,0.478787,106860.0,106850.0,0.62846903]
[1734454284380,0.478787,106860.0,106840.0,0.50959658]
[1734454284575,0.407592,106850.0,106840.0,0.113994]
[1734454285077,0.407592,106850.0,106840.0,0.13077488]
[1734454285275,0.470492,106850.0,106840.0,0.046794]
[1734454285477,0.046796,106840.0,106830.0,0.43332428]
[1734454285678,0.407596,106840.0,106830.0,0.43332428]
[1734454285871,0.407596,106840.0,106830.0,0.04688011]
[1734454288083,1.99076,106850.0,106830.0,0.04688011]
[1734454288084,0.537554,106850.0,106840.0,0.046796]
[1734454288380,0.175594,106850.0,106840.0,0.13077688]
[1734454288580,0.536394,106850.0,106840.0,0.13077688]
[1734454288888,0.536394,106850.0,106840.0,0.046796]
[1734454290076,0.4237,106850.0,106840.0,0.13077688]
[1734454290281,0.470492,106850.0,106840.0,0.13077688]
[1734454291283,0.470492,106850.0,106840.0,0.046796]
[1734454291980,0.046796,106840.0,106830.0,0.05680445]
[1734454292187,0.407596,106840.0,106830.0,0.05680445]
[1734454293379,0.407596,106840.0,106830.0,0.14078533]
[1734454294195,0.407596,106840.0,106830.0,0.05680445]
[1734454294389,0.476596,106840.0,106830.0,0.05680445]
[1734454295088,0.56057688,106840.0,106830.0,8.111e-05]
[1734454296789,0.56057688,106840.0,106830.0,0.04688111]
[1734454296982,0.476596,106840.0,106830.0,0.04688111]
[1734454298885,0.476596,106840.0,106830.0,8.111e-05]
[1734454299491,0.48899307,106840.0,106830.0,8.111e-05]
[1734454300087,0.4298,106840.0,106830.0,0.13086199]
[1734454300291,0.476596,106840.0,106830.0,0.51730616]
[1734454301707,0.476596,106840.0,106830.0,0.43332528]
[1734454302087,0.476596,106840.0,106830.0,0.04688111]
[1734454302984,0.56057688,106840.0,106830.0,8.111e-05]
[1734454307387,2.06057688,106840.0,106830.0,8.111e-05]
[1734454307588,2.06057688,106840.0,106810.0,0.046807]
[1734454307589,0.046805,106820.0,106810.0,0.046807]
[1734454307793,0.768405,106820.0,106810.0,0.046807]
[1734454308086,0.832805,106820.0,106810.0,0.046807]
[1734454308487,0.91678588,106820.0,106800.0,0.0657]
[1734454308687,0.407609,106810.0,106800.0,0.046813]
[1734454308894,0.407609,106810.0,106800.0,0.04687245]
[1734454308895,0.3608,106810.0,106800.0,0.04687245]
[1734454309291,0.3608,106810.0,106800.0,0.14621386]
[1734454309795,0.472005,106820.0,106810.0,0.046809]
[1734454309796,0.0644,106820.0,106810.0,0.046809]
[1734454309993,0.0644,106820.0,106810.0,0.13078988]
[1734454310389,0.4252,106820.0,106810.0,0.13078988]
[1734454310889,0.471702,106830.0,106820.0,0.046805]
[1734454311193,0.471702,106830.0,106820.0,0.13078588]
[1734454311396,0.4249,106830.0,106820.0,0.13078588]
[1734454311598,0.4249,106830.0,106820.0,0.19198588]
[1734454311891,0.0641,106830.0,106820.0,0.19198588]
[1734454312091,0.112897,106840.0,106830.0,0.0468]
[1734454312284,0.50167921,106850.0,106840.0,0.046796]
[1734454312492,0.14087921,106850.0,106840.0,0.046796]
[1734454313194,0.50167921,106850.0,106840.0,0.046796]
[1734454313391,0.442457,106850.0,106840.0,0.13077688]
[1734454313596,0.44625219,106890.0,106840.0,1.23641721]
[1734454313787,0.06299867,106890.0,106880.0,0.44478088]
[1734454313987,0.06299867,106890.0,106880.0,0.49155988]
[1734454314588,0.10977267,106890.0,106880.0,0.13075988]
[1734454315196,0.47057267,106890.0,106880.0,0.13075988]
[1734454316285,0.42379867,106890.0,106870.0,0.13075988]
[1734454316594,0.12809125,106890.0,106880.0,0.13075988]
[1734454317293,0.48889125,106890.0,106880.0,0.046779]
[1734454317500,0.08131625,106890.0,106880.0,0.046779]
[1734454317797,0.12809025,106890.0,106880.0,0.046779]
[1734454318296,0.12809025,106890.0,106880.0,0.13075988]
[1734454318497,0.44211625,106890.0,106880.0,0.13075988]
[1734454318996,0.48889025,106890.0,106880.0,0.13075988]
[1734454320299,0.48889025,106890.0,106880.0,0.046779]
[1734454320891,0.48748621,106890.0,106880.0,0.046779]
[1734454321492,0.48748621,106890.0,106880.0,0.13075988]
[1734454321809,9.463e-05,106890.0,106880.0,0.57554076]
[1734454322094,9.463e-05,106890.0,106880.0,0.61915988]
[1734454322603,9.463e-05,106890.0,106880.0,0.70065136]
[1734454324598,9.463e-05,106890.0,106880.0,0.78463224]
[1734454324804,9.463e-05,106890.0,106880.0,0.70065136]
[1734454325810,0.04686863,106890.0,106880.0,0.25587048]
[1734454325988,0.04686863,106890.0,106880.0,0.12817048]
[1734454326189,0.40766863,106890.0,106880.0,0.12817048]
[1734454326795,0.04686863,106890.0,106880.0,0.12817048]
[1734454327199,0.04686863,106890.0,106880.0,0.21215136]
[1734454328393,9.463e-05,106890.0,106880.0,0.21215136]
[1734454329196,0.04686863,106890.0,106880.0,0.21215136]
[1734454329398,0.40766863,106890.0,106880.0,0.21215136]
[1734454329597,0.04686863,106890.0,106880.0,0.21215136]
[1734454330610,9.463e-05,106890.0,106880.0,0.21215136]
[1734454331309,9.463e-05,106890.0,106880.0,0.57295136]
[1734454336620,9.463e-05,106890.0,106880.0,0.65693224]
[1734454338117,6.3e-07,106890.0,106880.0,0.65693224]
[1734454338419,0.0629,106910.0,106900.0,0.04677]
[1734454338607,0.0629,106910.0,106900.0,0.49155088]
[1734454342217,0.109665,106910.0,106900.0,0.13075088]
[1734454343424,0.0629,106910.0,106900.0,0.13075088]
[1734454343919,0.0629,106910.0,106900.0,0.14623827]
[1734454345325,0.0629,106910.0,106900.0,0.50703827]
[1734454345626,0.08395352,106920.0,106910.0,0.046765]
[1734454345819,0.22299794,106930.0,106920.0,0.046761]
[1734454346030,0.01569943,106930.0,106920.0,0.57552276]
[1734454347125,8.368e-05,106930.0,106920.0,0.57552276]
[1734454347527,8.368e-05,106930.0,106920.0,0.57561458]
[1734454347716,0.23533803,106950.0,106940.0,0.046752]
[1734454347917,0.1234,106950.0,106940.0,0.13073288]
[1734454348127,0.1234,106950.0,106940.0,0.49153288]
[1734454348327,0.0622,106950.0,106940.0,0.49153288]
[1734454348526,0.11193803,106970.0,106960.0,0.046744]
[1734454348825,0.60563543,106980.0,106970.0,0.046739]
[1734454349420,0.4936974,106980.0,106970.0,0.046739]
[1734454350423,0.4936974,106980.0,106950.0,0.08398088]
[1734454350722,0.3608,106960.0,106950.0,0.13072888]
[1734454350924,0.407544,106960.0,106950.0,0.046748]
[1734454351132,0.894344,106960.0,106950.0,0.046748]
[1734454351331,0.894344,106960.0,106930.0,0.44478088]
[1734454351332,0.97832488,106960.0,106930.0,0.44478088]
[1734454351534,0.472751,106950.0,106940.0,0.046752]
[1734454351831,0.046757,106940.0,106930.0,0.046756]
[1734454352016,0.046757,106930.0,106920.0,0.0482544]
[1734454352221,0.046757,106930.0,106900.0,0.59971888]
[1734454352222,0.534257,106930.0,106900.0,0.53831888]
[1734454352528,0.3608,106920.0,106910.0,0.046762]
[1734454353225,0.3608,106920.0,106910.0,0.04682909]
[1734454353426,0.407561,106920.0,106910.0,0.08404897]
[1734454353631,0.49154188,106920.0,106910.0,6.809e-05]
[1734454354428,0.407561,106920.0,106910.0,0.04683309]
[1734454355024,0.3608,106920.0,106910.0,0.04683309]
[1734454355222,0.3608,106920.0,106910.0,0.13081397]
[1734454355418,0.4256,106920.0,106910.0,0.13081397]
[1734454355723,0.4256,106920.0,106910.0,0.04683309]
[1734454357126,0.4256,106920.0,106910.0,0.13081397]
[1734454357625,0.0648,106920.0,106910.0,0.13081397]
[1734454358537,0.472361,106920.0,106910.0,0.13081397]
[1734454358734,0.4256,106920.0,106910.0,0.13081397]
[1734454359820,0.0648,106920.0,106910.0,0.13081397]
[1734454361131,0.472361,106920.0,106910.0,0.13081397]
[1734454361431,0.472361,106920.0,106910.0,0.04683309]
[1734454361831,0.472361,106920.0,106910.0,0.13081397]
[1734454361832,0.44432984,106920.0,106910.0,0.13081397]
[1734454362129,0.08352984,106920.0,106910.0,0.13081397]
[1734454362531,0.49109084,106920.0,106910.0,0.13081397]
[1734454362732,0.13029084,106920.0,106910.0,0.13081397]
[1734454363126,0.49109084,106920.0,106910.0,0.13081397]
[1734454365243,0.08352984,106920.0,106910.0,0.13081397]
[1734454365534,0.0648,106920.0,106910.0,0.49161397]
[1734454366035,0.0648,106920.0,106910.0,0.55311397]
[1734454366238,0.0648,106920.0,106910.0,0.19231397]
[1734454368338,0.111561,106920.0,106910.0,0.19231397]
[1734454369736,0.472361,106920.0,106910.0,0.13081397]
[1734454371633,0.0648,106920.0,106910.0,0.49161397]
[1734454372629,0.3608,106940.0,106920.0,0.046761]
[1734454372842,0.3608,106940.0,106930.0,0.13073788]
[1734454373744,0.59965303,106950.0,106940.0,0.046752]
[1734454374046,0.61845446,106950.0,106940.0,0.046752]
[1734454374235,0.61845446,106950.0,106940.0,0.13073288]
[1734454375038,0.61705143,106950.0,106940.0,0.13073288]
[1734454377142,0.61705143,106950.0,106940.0,0.046752]
[1734454380043,0.046752,106940.0,106930.0,0.13073488]
[1734454380344,0.407552,106940.0,106930.0,0.046754]
[1734454380536,0.046757,106930.0,106920.0,0.06023415]
[1734454380736,0.407557,106930.0,106920.0,0.06023415]
[1734454381141,0.3608,106930.0,106920.0,0.14421503]
[1734454381836,0.407554,106940.0,106930.0,0.046757]
[1734454386238,0.407554,106940.0,106930.0,0.13073788]
[1734454386852,0.407554,106940.0,106930.0,0.046757]
[1734454387752,0.046757,106930.0,106920.0,0.14421303]
[1734454387966,0.407557,106930.0,106920.0,0.14421303]
[1734454388340,0.407557,106930.0,106920.0,0.01347415]
[1734454388545,0.407557,106930.0,106910.0,0.13081097]
[1734454388546,0.046761,106920.0,106910.0,0.13081097]
[1734454388850,0.468261,106920.0,106910.0,0.13081097]
[1734454390652,0.531161,106920.0,106910.0,0.13081097]
[1734454390858,0.4844,106920.0,106910.0,0.13081097]
[1734454391247,0.4844,106920.0,106910.0,0.14386671]
[1734454391447,0.3608,106920.0,106910.0,0.14386671]
[1734454391653,0.533157,106930.0,106920.0,0.046761]
[1734454391849,0.533157,106930.0,106920.0,0.13074188]
[1734454392859,0.599257,106930.0,106920.0,0.046761]
[1734454398157,0.046761,106920.0,106910.0,6.809e-05]
[1734454398359,0.046765,106910.0,106900.0,0.04817207]
[1734454398560,0.04677,106900.0,106890.0,0.43517508]
[1734454398768,0.4248,106910.0,106900.0,0.04677]
[1734454399060,0.4248,106910.0,106900.0,0.51915596]
[1734454399251,0.4248,106910.0,106900.0,0.13081686]
[1734454400665,0.064,106910.0,106900.0,0.13081686]
[1734454400964,0.064,106910.0,106900.0,0.19101686]
[1734454401261,0.172758,106930.0,106920.0,0.046761]
[1734454401461,0.233958,106930.0,106920.0,0.046761]
[1734454401953,0.169858,106930.0,106920.0,0.046761]
[1734454402162,0.169858,106930.0,106920.0,0.13074188]
[1734454402461,0.169858,106930.0,106920.0,0.046761]
[1734454403055,0.046761,106920.0,106910.0,0.111864]
[1734454403365,0.046765,106910.0,106900.0,0.10703398]
[1734454403552,0.407565,106910.0,106900.0,0.10703398]
[1734454404069,0.470965,106910.0,106900.0,0.19101486]
[1734454405159,0.470965,106910.0,106900.0,0.06026598]
[1734454405356,0.470965,106910.0,106900.0,6.598e-05]
[1734454405357,0.55494588,106910.0,106900.0,6.598e-05]
[1734454407254,0.55505526,106910.0,106900.0,6.598e-05]
[1734454410478,0.47107438,106910.0,106900.0,0.04683598]
[1734454411269,0.47107438,106910.0,106900.0,6.598e-05]
[1734454411466,0.47107438,106910.0,106900.0,0.04683598]
[1734454412070,0.47107438,106910.0,106900.0,6.598e-05]
[1734454413361,0.55505526,106910.0,106900.0,6.598e-05]
[1734454414356,0.55505526,106910.0,106880.0,0.40161969]
[1734454414357,0.046774,106890.0,106880.0,0.40161969]
[1734454414559,0.85235488,106890.0,106880.0,0.40161969]
[1734454414759,0.829974,106890.0,106880.0,0.40161969]
[1734454415164,0.829974,106890.0,106880.0,0.44839869]
[1734454415478,0.7832,106890.0,106880.0,0.44839869]
[1734454415655,0.7832,106890.0,106880.0,0.53237957]
[1734454415856,0.7216,106890.0,106880.0,0.97369109]
[1734454416061,0.7216,106890.0,106880.0,0.14389746]
[1734454416274,0.7216,106890.0,106880.0,0.05991658]
[1734454416473,0.768374,106890.0,106880.0,0.05991658]
[1734454416665,0.3608,106890.0,106880.0,0.05991658]
[1734454416971,0.4882,106900.0,106890.0,0.046774]
[1734454417164,0.3608,106900.0,106890.0,0.19265488]
[1734454418973,0.40757,106900.0,106890.0,0.19265488]
[1734454419365,0.04677,106900.0,106890.0,0.19265488]
[1734454420568,0.40757,106900.0,106890.0,0.0619]
[1734454420782,0.48574067,106900.0,106880.0,0.05991458]
[1734454421072,0.472674,106890.0,106880.0,0.05991658]
[1734454421273,0.538974,106890.0,106880.0,0.046779]
[1734454421479,0.046779,106880.0,106870.0,0.48809352]
[1734454421663,0.407579,106880.0,106870.0,0.48809352]
[1734454421975,0.49155988,106880.0,106870.0,0.38833421]
[1734454422477,0.49155988,106880.0,106860.0,0.40194261]
[1734454422769,0.55666388,106870.0,106860.0,0.44872961]
[1734454422971,0.61986388,106870.0,106860.0,0.89004113]
[1734454423170,0.61986388,106870.0,106860.0,0.50170692]
[1734454423472,0.535883,106870.0,106860.0,0.50170692]
[1734454424569,0.535883,106870.0,106860.0,0.44868469]
[1734454426675,0.4259,106870.0,106860.0,0.14297286]
[1734454426881,0.3608,106880.0,106870.0,0.046783]
[1734454427076,0.0663,106890.0,106880.0,0.046779]
[1734454427265,0.0663,106890.0,106880.0,0.5720714]
[1734454427579,0.473874,106890.0,106880.0,0.48809052]
[1734454429073,0.49301751,106890.0,106880.0,0.5720714]
[1734454429376,0.49301751,106890.0,106880.0,0.48809052]
[1734454429570,0.49301751,106890.0,106880.0,0.44131152]
[1734454429874,0.55731751,106890.0,106880.0,0.44131152]
[1734454430380,0.55731751,106890.0,106880.0,0.046779]
[1734454430769,0.55731751,106890.0,106880.0,0.05856701]
[1734454431681,0.55731751,106890.0,106880.0,0.01178801]
[1734454431974,0.046779,106880.0,106870.0,0.13076288]
[1734454432175,0.44624351,106890.0,106870.0,0.08398088]
[1734454432380,0.49301951,106890.0,106880.0,0.046779]
[1734454433273,0.37994351,106890.0,106870.0,0.14235789]
[1734454433474,0.407579,106880.0,106870.0,0.05837701]
[1734454433879,0.407579,106880.0,106870.0,0.14235789]
[1734454435784,0.471279,106880.0,106870.0,0.05837701]
[1734454436087,0.471279,106880.0,106870.0,0.14235789]
[1734454436584,0.471279,106880.0,106870.0,0.53120994]
[1734454437192,0.3608,106880.0,106870.0,0.97252146]